bitfinex-derivatives/quotes_ETHF0:USTF0_20251210
["timestamp","ask_amount","ask_price","bid_price","bid_amount"]
[1765376906540,0.97093557,3325.3,3325.2,0.4113]
[1765376907048,0.0443,3325.1,3325.0,1.00789]
[1765376907249,4.10703557,3325.1,3325.0,1.00789]
[1765376908138,5.71383525,3325.1,3325.0,2.43959]
[1765376908336,5.66953525,3325.1,3325.0,3.75899]
[1765376908538,4.06273557,3325.1,3325.0,3.75899]
[1765376909339,5.66953525,3325.1,3325.0,1.00789]
[1765376910252,4.81459968,3325.1,3325.0,1.00789]
[1765376910449,5.62700605,3325.1,3325.0,1.00789]
[1765376911650,5.62700605,3325.1,3325.0,2.35139]
[1765376911852,4.02020637,3325.1,3325.0,2.35139]
[1765376912452,4.02020637,3325.1,3325.0,1.00789]
[1765376912755,4.02020637,3325.1,3325.0,2.35139]
[1765376914263,4.02020637,3325.1,3325.0,1.00789]
[1765376916553,4.02020637,3325.1,3324.5,0.41348314]
[1765376916756,3.2078,3324.7,3324.6,2.6629]
[1765376917060,4.02020637,3324.7,3324.6,2.6629]
[1765376917356,0.81240637,3324.7,3324.6,2.6629]
[1765376918153,0.77232748,3324.7,3324.6,2.6629]
[1765376918348,1.60913239,3325.6,3325.5,3.5027]
[1765376918556,0.00233271,3325.6,3325.5,3.5027]
[1765376919658,0.00233271,3325.6,3325.5,3.65307]
[1765376920452,0.00233271,3325.6,3325.5,5.95944872]
[1765376920755,3.2078,3326.3,3326.2,2.81323]
[1765376920957,2.14239957,3327.2,3326.0,0.8398]
[1765376920958,5.8182,3326.7,3326.6,1.3435]
[1765376921659,5.82168352,3326.7,3326.6,1.3435]
[1765376923056,1.2931,3326.5,3326.4,2.81322]
[1765376923861,2.6104,3326.5,3326.4,2.81322]
[1765376924063,2.6104,3326.5,3326.4,1.49382]
[1765376924859,1.2931,3326.5,3326.4,2.81322]
[1765376925564,2.6104,3326.5,3326.4,1.49382]
[1765376926465,2.6104,3326.5,3326.4,2.81322]
[1765376927259,3.21128352,3326.7,3326.3,0.00450598]
[1765376927260,3.21128352,3326.7,3326.6,2.6629]
[1765376927664,4.50438352,3326.7,3326.6,2.6629]
[1765376928460,5.82168352,3326.7,3326.6,1.49382]
[1765376929863,5.82168352,3326.7,3326.6,2.81322]
[1765376930365,5.82168352,3326.7,3326.6,1.49382]
[1765376931367,5.82168352,3326.7,3326.6,2.81322]
[1765376932463,3.21128352,3326.7,3326.6,2.81322]
[1765376935063,0.00348352,3326.7,3326.6,2.81322]
[1765376936059,0.00348352,3326.7,3326.6,6.02102]
[1765376941871,0.00348352,3326.7,3326.6,4.79742]
[1765376941872,2.66808352,3326.7,3326.6,4.79742]
[1765376942066,2.7919,3326.4,3326.3,0.00450598]
[1765376943578,2.7919,3326.4,3326.3,1.44380598]
[1765376943772,2.7919,3326.4,3326.3,0.00450598]
[1765376944779,8.7919,3326.4,3326.3,0.00450598]
[1765376945469,1.3715,3325.7,3325.6,0.15036]
[1765376945679,2.7919,3325.7,3325.6,0.15036]
[1765376946074,2.7919,3325.7,3325.6,1.58966]
[1765376947377,2.7919,3326.0,3325.9,1.4393]
[1765376947778,6.7828,3326.5,3326.4,1.4393]
[1765376947983,7.60474096,3326.5,3326.0,1.00514]
[1765376948181,3.61461867,3326.4,3326.3,1.4393]
[1765376948573,2.7919,3326.1,3326.0,1.58964]
[1765376948872,2.7919,3326.1,3326.0,0.15034]
[1765376949477,5.9997,3326.1,3326.0,0.15034]
[1765376953084,5.9997,3326.1,3325.4,0.15037]
[1765376953085,1.3715,3325.5,3325.4,0.15037]
[1765376953285,2.654,3325.5,3325.4,1.54127]
[1765376953584,1.2825,3325.5,3325.4,2.91447]
[1765376954186,2.6354,3326.0,3325.9,1.3909]
[1765376955086,2.6354,3326.0,3325.9,2.7641]
[1765376955383,2.6354,3326.0,3325.9,1.3909]
[1765376955583,2.6354,3326.0,3325.9,2.7641]
[1765376956088,2.6354,3326.0,3325.9,2.91445]
[1765376956481,1.2825,3326.0,3325.9,2.91445]
[1765376956786,2.6354,3326.0,3325.9,2.91445]
[1765376957486,4.4903,3326.1,3326.0,3.70014]
[1765376957989,5.8432,3326.1,3326.0,3.70014]
[1765376958983,4.4903,3326.1,3326.0,3.70014]
[1765376959178,3.2078,3326.1,3326.0,3.70014]
[1765376960183,5.8432,3326.5,3326.4,1.3909]
[1765376960380,6.66508708,3326.5,3326.4,2.7641]
[1765376960585,5.8432,3326.5,3326.4,2.7641]
[1765376961093,4.4903,3326.5,3326.4,2.7641]
[1765376961585,3.2078,3326.5,3326.4,2.91443]
[1765376961981,4.4903,3326.5,3326.4,2.91443]
[1765376962183,3.2078,3326.5,3326.4,2.91443]
[1765376962779,5.8432,3326.5,3326.4,2.91443]
[1765376963289,5.8432,3326.5,3326.4,1.54123]
[1765376963593,6.621,3326.5,3326.4,1.54123]
[1765376963793,5.8432,3326.5,3326.4,2.91443]
[1765376964092,0.00450598,3327.0,3326.9,2.9144]
[1765376964290,2.6354,3327.2,3327.1,0.15029]
[1765376964795,2.6354,3327.2,3327.1,1.54119]
[1765376964997,2.63810165,3327.2,3327.1,1.54482044]
[1765376967292,2.63810165,3327.2,3327.1,0.36040846]
[1765376967597,2.63810165,3327.2,3327.1,0.51069846]
[1765376967993,2.63810165,3327.2,3327.1,0.15392044]
[1765376969395,2.63810165,3327.2,3327.1,0.00363044]
[1765376979705,2.63810165,3327.2,3327.1,1.40152044]
[1765376980497,2.63810165,3327.2,3327.1,0.00363044]
[1765376980700,0.8895,3326.5,3326.1,3.2078]
[1765376980896,2.9203,3326.2,3326.1,3.2078]
[1765376981607,2.9203,3326.2,3326.1,4.29185659]
[1765376982004,3.8098,3326.5,3326.4,1.0512]
[1765376984511,3.8098,3326.5,3326.4,2.1024]
[1765376984704,3.8098,3326.5,3326.4,1.0512]
[1765376984905,3.8098,3326.5,3326.4,2.0723]
[1765376985807,3.8098,3326.5,3326.4,1.0512]
[1765376986013,3.8098,3326.5,3326.4,2.0573]
[1765376986312,3.8098,3326.5,3326.4,1.0512]
[1765376987403,2.9203,3326.4,3326.3,1.12663]
[1765376987902,2.9203,3326.4,3326.3,0.15033]
[1765376988812,1.4945,3326.4,3326.3,2.08813]
[1765376989017,3.8098,3326.5,3326.4,1.923]
[1765376989408,3.8098,3326.5,3326.4,0.9615]
[1765376989813,3.8098,3326.5,3326.4,1.9082]
[1765376990118,3.8098,3326.5,3326.4,2.05853]
[1765376991313,0.8895,3326.5,3326.4,2.05853]
[1765376991718,2.384,3326.5,3326.4,2.05853]
[1765376992018,3.8098,3327.0,3326.9,0.9173]
[1765376992219,4.65931508,3327.0,3326.9,0.9173]
[1765376992420,2.9203,3326.7,3326.6,1.95571]
[1765376994022,2.9203,3326.7,3326.6,1.05301]
[1765376994922,2.9203,3326.7,3326.6,0.15031]
[1765376995717,2.9203,3326.7,3326.6,1.02391]
[1765376996718,1.4945,3326.7,3326.6,1.88301]
[1765376996918,3.8098,3327.0,3326.9,0.9949]
[1765376997224,0.8895,3327.0,3326.9,5.0473]
[1765376997426,2.384,3327.0,3326.9,5.0473]
[1765376997924,3.8098,3327.0,3326.9,5.0473]
[1765376999725,0.8895,3327.0,3326.9,5.0473]
[1765376999927,0.00270165,3327.2,3327.1,1.75409]
[1765377000130,2.73950165,3327.2,3327.1,1.75409]
[1765377000424,2.73950165,3327.2,3326.9,3.2078]
[1765377000624,2.73950165,3327.2,3326.1,0.00315659]
[1765377000625,2.7368,3326.6,3326.5,3.2078]
[1765377000824,5.04871832,3326.6,3326.5,3.2078]
[1765377001220,0.7987,3327.0,3326.9,1.3016]
[1765377001221,3.5355,3327.0,3326.9,1.3016]
[1765377001420,2.7368,3326.6,3326.5,1.45192]
[1765377001627,1.3077,3326.9,3326.8,2.8566]
[1765377001829,3.59386543,3326.9,3326.8,1.4519]
[1765377002020,3.59386543,3326.9,3326.8,0.1503]
[1765377002221,2.7368,3326.9,3326.8,2.85969215]
[1765377002520,3.59025219,3326.9,3326.8,1.45499215]
[1765377002715,3.59025219,3326.9,3326.0,0.7762]
[1765377002716,2.7368,3325.9,3325.8,3.2078]
[1765377002920,1.3077,3325.9,3325.8,5.9141]
[1765377003326,2.7368,3325.9,3325.8,2.7063]
[1765377003523,3.5355,3325.5,3325.4,4.5094]
[1765377003723,2.74130598,3325.8,3325.7,2.7063]
[1765377003917,0.00450598,3325.8,3325.7,2.7063]
[1765377004318,0.00450598,3325.8,3325.7,2.85666]
[1765377004631,0.7987,3327.0,3326.4,2.7063]
[1765377004828,0.7987,3327.0,3326.7,2.7063]
[1765377005028,2.7368,3327.0,3326.9,7.53306376]
[1765377005224,2.73950165,3327.2,3327.1,2.7063]
[1765377005523,2.73950165,3327.2,3327.1,0.15029]
[1765377005726,2.7368,3326.5,3326.4,1.45192]
[1765377006125,1.3077,3326.6,3326.5,2.85662]
[1765377007132,2.7368,3326.6,3326.5,1.45192]
[1765377007331,2.7368,3326.6,3326.5,0.15032]
[1765377007626,2.7368,3326.6,3326.5,1.45192]
[1765377007832,1.3077,3326.6,3326.5,2.85662]
[1765377008027,0.7987,3327.0,3326.5,2.85662]
[1765377008228,0.00270165,3327.2,3327.1,2.813]
[1765377008434,0.00270165,3327.2,3327.1,2.96329]
[1765377008821,3.00510165,3327.2,3327.1,2.96329]
[1765377009023,3.00510165,3327.2,3327.1,0.15029]
[1765377009227,0.9118,3327.0,3326.6,0.15032]
[1765377009427,1.4741,3326.7,3326.6,3.07002]
[1765377009830,3.9142,3327.0,3326.9,1.4083]
[1765377010028,1.4741,3326.7,3326.6,3.07002]
[1765377010226,4.68460165,3327.2,3327.1,1.4083]
[1765377010432,3.00510165,3327.2,3327.1,3.06999]
[1765377010628,0.00270165,3327.2,3327.1,3.06999]
[1765377011429,3.00510165,3327.2,3327.1,3.06999]
[1765377011630,3.00510165,3327.2,3327.1,0.15029]
[1765377011831,1.5283,3326.4,3326.3,3.07003]
[1765377012033,3.0024,3326.4,3326.3,0.15033]
[1765377012533,3.0024,3326.4,3325.6,0.15036]
[1765377012733,1.4741,3325.8,3325.7,3.07005]
[1765377012932,3.0024,3325.4,3325.3,0.00302502]
[1765377013129,6.2102,3325.4,3325.3,0.00302502]
[1765377013332,1.4741,3324.3,3324.2,1.55872]
[1765377013628,3.0024,3324.3,3323.9,3.2078]
[1765377013834,1.4741,3324.0,3323.9,3.2078]
[1765377014034,0.00314273,3324.0,3323.9,6.13005724]
[1765377014236,0.00314273,3324.0,3323.9,6.28049724]
[1765377015729,3.2078,3324.9,3324.0,0.6812]
[1765377015930,4.6819,3324.9,3324.3,3.2078]
[1765377016536,4.6819,3324.9,3324.5,0.15041]
[1765377016727,4.6843185,3324.9,3324.5,0.15041]
[1765377016932,1.4741,3324.6,3324.5,0.15041]
[1765377017129,3.0024,3324.4,3323.9,0.00255724]
[1765377017335,3.2102185,3324.9,3323.9,4.76909724]
[1765377017336,3.2078,3324.8,3323.9,4.76909724]
[1765377017639,3.2078,3324.8,3323.9,4.61865724]
[1765377018239,3.2078,3324.8,3324.0,0.6363]
[1765377018629,3.2078,3324.8,3323.9,3.21035724]
[1765377018939,1.4741,3324.4,3324.3,1.55872]
[1765377019133,3.2078,3324.8,3324.0,0.6213]
[1765377019337,0.0024185,3324.9,3324.8,1.4083]
[1765377019538,0.0024185,3324.9,3324.8,2.9197]
[1765377020636,0.0024185,3324.9,3324.8,3.0701]
[1765377020835,0.0024185,3324.9,3324.8,6.2779]
[1765377021638,3.0024,3324.4,3324.3,3.2078]
[1765377022137,1.4741,3324.0,3323.9,4.44755724]
[1765377022339,3.2102185,3324.9,3324.3,3.07012]
[1765377022644,4.6843185,3324.9,3324.1,3.2078]
[1765377022837,0.0024185,3324.9,3324.8,3.0701]
[1765377023448,3.0048185,3324.9,3324.8,0.1504]
[1765377023638,3.0024,3324.8,3324.7,3.2078]
[1765377023941,3.0024,3324.4,3324.3,3.2078]
[1765377024939,3.0024,3324.2,3324.1,0.15043]
[1765377026646,1.4741,3324.2,3324.1,1.55873]
[1765377026845,3.0024,3324.2,3324.1,0.15043]
[1765377027245,3.5032,3324.0,3323.9,0.00255724]
[1765377030549,2.7098,3323.7,3323.6,0.00450598]
[1765377030743,2.7098,3323.7,3321.6,12.29520748]
[1765377030744,2.7098,3323.0,3322.6,0.1505]
[1765377031453,0.8525,3323.4,3321.7,3.2078]
[1765377031454,2.7098,3322.2,3321.7,3.2078]
[1765377031639,2.7098,3321.8,3321.7,0.00252054]
[1765377031944,2.7098,3320.9,3320.8,3.2078]
[1765377032147,3.2078,3321.5,3320.8,2.7537]
[1765377032353,3.2078,3322.0,3321.4,1.3693]
[1765377032552,0.00451283,3322.1,3320.8,5.034]
[1765377032553,0.00451283,3322.1,3321.9,1.3693]
[1765377032843,1.36411283,3322.1,3321.5,9.7728]
[1765377033044,2.7098,3322.0,3321.9,0.0033308]
[1765377033645,1.3596,3322.0,3321.9,0.0033308]
[1765377033845,2.7098,3322.0,3321.9,0.0033308]
[1765377034143,8.72419078,3322.0,3321.9,0.0033308]
[1765377034344,5.93199078,3322.0,3321.9,0.0033308]
[1765377035549,0.01439078,3322.0,3321.9,2.9075608]
[1765377036047,2.72419078,3322.0,3321.9,0.0033308]
[1765377038950,0.01439078,3322.0,3321.9,2.7570308]
[1765377039454,0.01439078,3322.0,3321.9,1.3726308]
[1765377039942,1.37399078,3322.0,3321.9,0.0033308]
[1765377040146,2.72419078,3322.0,3321.9,0.0033308]
[1765377040548,0.01439078,3322.0,3321.9,2.9075608]
[1765377040746,3.21167035,3322.2,3321.9,2.9075608]
[1765377040747,3.2078,3323.1,3321.9,3.2111308]
[1765377040942,3.2078,3323.1,3322.3,3.2078]
[1765377041757,0.00451283,3323.0,3322.4,0.00451283]
[1765377042251,0.85226474,3323.0,3322.4,0.00451283]
[1765377042446,0.00451283,3323.0,3322.4,0.00451283]
[1765377042652,0.85302679,3323.0,3322.5,0.1505]
[1765377043052,1.3596,3322.6,3322.5,0.1505]
[1765377043942,0.00451283,3323.0,3322.5,2.9042]
[1765377044147,0.85308669,3323.0,3322.5,2.9042]
[1765377044348,0.85308669,3323.0,3322.9,2.90418]
[1765377044543,0.00451283,3323.0,3322.9,2.90418]
[1765377046051,0.00451283,3323.0,3322.8,3.12706443]
[1765377046052,0.8488494,3323.9,3323.4,0.15046]
[1765377046246,1.3596,3323.5,3323.4,0.15046]
[1765377046650,4.0603,3324.0,3323.4,1.51976]
[1765377046849,2.7098,3323.5,3323.4,0.15046]
[1765377047045,2.7098,3323.5,3323.2,3.2078]
[1765377047046,2.7098,3323.3,3323.2,3.2078]
[1765377047546,1.3596,3323.3,3323.2,4.5771]
[1765377047850,1.3596,3323.3,3323.2,1.3693]
[1765377048048,0.00291867,3323.5,3323.4,2.7537]
[1765377048445,1.3596,3323.4,3323.3,0.15046]
[1765377048755,2.7098,3323.4,3323.3,0.15046]
[1765377049048,0.00291867,3323.5,3323.4,3.76226]
[1765377051258,0.00291867,3323.5,3323.4,12.72716]
[1765377051862,0.00291867,3323.5,3323.4,2.90416]
[1765377052160,1.36251867,3323.5,3323.4,1.51976]
[1765377052360,2.71271867,3323.5,3323.4,0.15046]
[1765377052859,0.00291867,3323.5,3323.4,3.40076]
[1765377053256,0.00291867,3323.5,3323.4,2.90416]
[1765377053562,1.36251867,3323.5,3323.4,1.51976]
[1765377054064,3.14721867,3323.5,3323.4,0.15046]
[1765377054756,2.71271867,3323.5,3323.4,0.15046]
[1765377054963,2.71271867,3323.5,3323.4,1.51976]
[1765377055165,2.7098,3323.3,3323.2,3.2078]
[1765377055354,0.83017746,3323.3,3322.7,6.11199]
[1765377055556,0.83017746,3323.2,3322.7,6.11199]
[1765377055755,0.83033864,3323.1,3322.7,6.11199]
[1765377055952,0.85541867,3323.5,3322.7,6.11199]
[1765377056149,0.83034923,3323.4,3322.7,6.11199]
[1765377056349,0.83034923,3323.3,3322.7,6.11199]
[1765377056560,2.7098,3322.8,3322.7,3.35829]
[1765377057158,2.7098,3322.8,3322.7,0.15049]
[1765377058154,3.838,3323.0,3322.0,0.15052]
[1765377058155,3.278,3322.5,3322.0,0.15052]
[1765377058456,6.4858,3322.5,3322.0,0.15052]
[1765377058663,7.31653646,3322.5,3322.0,0.15052]
[1765377058960,6.3628,3323.4,3322.8,0.15049]
[1765377059163,2.4373,3322.9,3322.8,7.77149]
[1765377059667,1.2366,3323.0,3322.9,0.15048]
[1765377060066,2.4373,3323.0,3322.9,0.15048]
[1765377060366,0.00291867,3323.5,3323.3,1.2984]
[1765377060559,0.00291867,3323.5,3323.4,1.2984]
[1765377060759,0.00291867,3323.5,3323.4,2.5121]
[1765377061157,3.155,3323.4,3323.3,0.15047]
[1765377061355,2.4373,3322.8,3322.7,3.2078]
[1765377061854,2.4373,3322.5,3322.4,0.00451283]
[1765377062060,5.6451,3322.5,3322.4,0.00451283]
[1765377062264,6.45724556,3322.5,3322.4,0.00451283]
[1765377062665,2.4373,3322.0,3321.9,0.1538608]
[1765377063060,3.2078,3322.5,3322.1,0.15052]
[1765377063258,3.2078,3322.5,3322.4,2.66261]
[1765377063457,3.2078,3323.0,3322.5,0.1505]
[1765377063662,0.834522,3322.9,3322.5,0.1505]
[1765377064063,1.2366,3322.6,3322.5,0.1505]
[1765377064365,2.4373,3322.6,3322.5,0.1505]
[1765377065155,2.4373,3322.5,3322.4,0.00451283]
[1765377065360,6.47697921,3322.5,3322.4,0.00451283]
[1765377065560,2.4373,3322.0,3321.9,0.0033308]
[1765377065761,6.47697921,3322.0,3321.9,0.0033308]
[1765377066361,2.4373,3321.3,3320.8,3.2078]
[1765377067265,2.4373,3321.3,3320.8,3.21130566]
[1765377067462,2.4373,3321.0,3320.9,0.15057]
[1765377067670,0.00257083,3321.0,3320.9,1.44897]
[1765377067870,0.00257083,3321.0,3320.9,2.66267]
[1765377069070,2.43987083,3321.0,3320.9,0.15057]
[1765377069371,2.4373,3320.9,3320.8,0.00350566]
[1765377073369,0.00257083,3321.0,3320.9,2.3969]
[1765377073573,3.2078,3321.8,3321.7,2.3969]
[1765377074072,3.2078,3321.8,3321.7,2.54744]
[1765377074268,3.2078,3321.8,3321.7,0.15054]
[1765377074269,4.4016,3321.8,3321.7,0.15054]
[1765377074466,3.2078,3322.5,3322.1,1.36392]
[1765377074669,3.21041839,3322.5,3322.1,1.36392]
[1765377075267,3.1651,3322.2,3322.1,0.15052]
[1765377075672,1.1938,3322.2,3322.1,0.15052]
[1765377076168,3.21041839,3322.5,3322.4,1.2134]
[1765377076371,3.21041839,3322.5,3322.4,2.54741]
[1765377076767,0.00261839,3322.5,3322.4,5.75521]
[1765377079770,0.00261839,3322.5,3322.4,10.73821]
[1765377080876,2.45741839,3322.5,3322.4,3.35831]
[1765377081077,1.19641839,3322.5,3322.4,4.57171]
[1765377081577,0.00261839,3322.5,3322.4,5.75521]
[1765377082370,0.00261839,3322.5,3322.4,4.57171]
[1765377082571,2.45741839,3322.5,3322.4,3.35831]
[1765377082877,2.45741839,3322.5,3322.0,0.00451283]
[1765377082878,2.4548,3322.1,3322.0,0.00451283]
[1765377083577,3.21041839,3322.5,3322.0,2.55193283]
[1765377084078,5.6626,3322.1,3322.0,0.15503283]
[1765377085581,5.6626,3322.1,3322.0,0.00451283]
[1765377085783,2.4548,3321.4,3321.3,0.15055]
[1765377085978,1.1938,3321.4,3321.3,1.36395]
[1765377086180,1.1938,3321.4,3321.1,3.2078]
[1765377086181,3.2078,3321.6,3321.5,2.54745]
[1765377086383,3.2078,3322.1,3322.0,1.2134]
[1765377086574,3.2078,3322.1,3322.0,2.54742]
[1765377086877,5.6626,3322.1,3322.0,0.15052]
[1765377087081,1.1938,3321.5,3321.4,3.86755]
[1765377087278,1.1938,3321.5,3321.4,1.36395]
[1765377087577,3.2078,3322.1,3321.4,1.36395]
[1765377087782,3.2078,3322.1,3321.2,10.953]
[1765377087979,3.2078,3322.1,3321.6,0.15054]
[1765377088175,3.2078,3322.1,3321.7,0.15054]
[1765377088480,2.3538,3321.8,3321.7,0.15054]
[1765377089177,2.3377,3321.2,3321.1,3.35836]
[1765377089383,1.1777,3321.2,3321.1,4.51966]
[1765377089582,3.8692,3321.6,3321.1,3.2078]
[1765377090193,2.3377,3321.5,3321.4,0.15055]
[1765377091081,1.1777,3321.5,3321.4,1.31185]
[1765377091677,1.1777,3321.5,3321.4,2.44255]
[1765377091880,3.2078,3321.6,3321.5,2.44255]
[1765377092084,5.5455,3321.6,3321.5,0.15055]
[1765377092287,6.2069,3321.6,3321.5,0.15055]
[1765377092986,0.7103,3322.2,3321.7,0.15054]
[1765377093289,3.2078,3323.0,3322.5,2.4425]
[1765377093789,1.18221283,3322.6,3322.5,1.3118]
[1765377093978,0.00451283,3322.6,3322.5,2.4425]
[1765377094488,1.18604312,3322.6,3322.5,0.1505]
[1765377094678,1.18604312,3322.6,3322.5,1.3118]
[1765377095189,2.34604312,3322.6,3322.5,0.1505]
[1765377095484,5.55384312,3322.6,3321.8,0.15053]
[1765377095889,1.1777,3322.2,3322.1,0.15052]
[1765377096190,6.2069,3322.2,3322.1,0.15052]
[1765377096584,5.5455,3322.2,3322.1,0.15052]
[1765377096985,6.2069,3322.2,3322.1,0.15052]
[1765377097186,1.1777,3321.8,3321.7,0.15054]
[1765377097391,3.8692,3322.2,3321.7,2.44254]
[1765377097784,5.5455,3321.8,3321.7,0.15054]
[1765377097989,2.3377,3321.8,3321.7,0.15054]
[1765377098695,1.1777,3321.8,3321.7,0.15054]
[1765377099190,2.3377,3321.8,3321.7,0.15054]
[1765377100491,1.1777,3321.8,3321.7,1.31184]
[1765377100796,2.3377,3321.8,3321.7,0.15054]
[1765377101182,5.5455,3321.8,3321.7,0.15054]
[1765377101389,1.1777,3321.2,3321.1,4.51967]
[1765377101689,0.6614,3321.6,3321.1,5.65037]
[1765377101890,0.6614,3321.6,3321.2,0.15056]
[1765377102289,1.1777,3321.3,3321.2,1.31186]
[1765377102483,2.3377,3321.6,3321.1,3.2078]
[1765377102683,0.6614,3321.5,3321.1,3.2078]
[1765377103183,2.3377,3321.2,3321.1,0.15057]
[1765377103385,2.3377,3320.9,3320.8,0.00350566]
[1765377103583,1.1777,3320.9,3320.8,1.31538566]
[1765377103791,1.1777,3321.0,3320.9,1.31187]
[1765377104397,2.3377,3321.0,3320.9,1.31187]
[1765377104591,2.3377,3321.0,3320.9,0.15057]
[1765377104592,2.9991,3321.0,3320.9,0.15057]
[1765377105491,3.2078,3321.4,3320.9,2.44257]
[1765377106298,2.9991,3321.0,3320.9,0.15057]
[1765377107287,2.3377,3320.9,3320.8,0.00350566]
[1765377107495,2.3377,3319.8,3319.7,3.35843]
[1765377107694,0.00451283,3320.1,3320.0,3.13532]
[1765377107901,0.00451283,3320.1,3320.0,2.44262]
[1765377108101,0.00451283,3320.1,3320.0,3.12412]
[1765377108499,0.00685767,3320.1,3320.0,3.12673956]
[1765377108904,1.18455767,3320.1,3320.0,2.44523956]
[1765377109205,7.67e-06,3320.1,3320.0,3.11603956]
[1765377109503,7.67e-06,3320.1,3320.0,9.11603956]
[1765377109700,3.2078,3320.8,3320.7,2.44258]
[1765377110600,3.21051276,3320.8,3320.7,2.44258]
[1765377113205,4.38821276,3320.8,3320.7,2.44258]
[1765377113406,3.21051276,3320.8,3320.7,2.44258]
[1765377113602,0.00271276,3320.8,3320.7,2.44258]
[1765377113801,0.00271276,3320.8,3320.6,8.2748]
[1765377113802,3.2078,3321.4,3321.3,2.292]
[1765377114608,3.2078,3322.4,3322.3,2.292]
[1765377114795,5.5455,3322.4,3322.0,0.00451283]
[1765377114998,5.54774814,3322.4,3322.0,0.00451283]
[1765377115412,5.54774814,3322.4,3322.3,0.15051]
[1765377115699,4.38774814,3322.4,3322.3,1.31181]
[1765377116203,5.54774814,3322.4,3322.3,0.15051]
[1765377116606,0.00224814,3322.4,3322.3,2.44251]
[1765377117905,0.78640943,3322.7,3322.6,0.1505]
[1765377118101,1.86860943,3322.7,3322.6,0.62080143]
[1765377118706,1.87080383,3322.7,3322.6,0.62386676]
[1765377120406,1.87080383,3322.7,3322.6,1.61286676]
[1765377120701,0.6614,3323.5,3322.6,1.61286676]
[1765377120702,3.2078,3323.2,3322.9,0.989]
[1765377120904,3.2078,3324.4,3323.7,0.15045]
[1765377121098,1.0696,3323.9,3323.8,1.60974143]
[1765377121304,2.1518,3323.9,3323.8,0.62074143]
[1765377121497,3.2078,3324.4,3323.8,0.62074143]
[1765377121498,3.2078,3324.4,3324.3,0.989]
[1765377121699,2.1518,3324.7,3324.6,0.15041]
[1765377122009,0.00451283,3325.0,3324.9,0.15039]
[1765377122196,2.15631283,3325.0,3324.9,0.62069143]
[1765377122401,2.15968217,3325.0,3324.9,0.62069143]
[1765377122804,0.00788217,3325.0,3324.9,2.67079143]
[1765377123206,2.15968217,3325.0,3324.9,0.62069143]
[1765377123603,0.00788217,3325.0,3324.9,2.67079143]
[1765377123804,3.2078,3325.8,3325.3,2.0501]
[1765377124004,4.08,3327.3,3325.2,0.6159]
[1765377124005,3.2078,3326.2,3325.7,1.13936]
[1765377124205,3.2078,3326.2,3325.9,0.15035]
[1765377124407,2.1518,3326.1,3326.0,0.47030143]
[1765377124607,3.16928932,3327.6,3326.0,0.47030143]
[1765377124608,3.2078,3326.8,3326.2,0.15033]
[1765377124817,0.6392,3327.6,3325.9,4.333]
[1765377124818,0.6392,3327.6,3326.7,5.2579]
[1765377125009,0.6392,3327.6,3326.8,0.15031]
[1765377125010,3.847,3327.6,3326.8,0.15031]
[1765377125210,0.00451283,3327.5,3326.9,0.1503]
[1765377125411,0.00451283,3327.5,3326.8,0.00451283]
[1765377125606,0.00451283,3327.5,3327.4,0.989]
[1765377125806,0.00451283,3327.5,3327.2,3.2078]
[1765377126006,3.2078,3328.5,3327.5,2.0501]
[1765377126206,3.2078,3328.5,3327.9,3.35805]
[1765377126608,3.2078,3328.5,3327.9,3.2078]
[1765377126807,0.6392,3328.8,3328.3,3.2078]
[1765377127218,0.64253915,3328.8,3328.3,3.2078]
[1765377127517,1.60679968,3330.5,3328.3,3.2078]
[1765377127518,3.2078,3331.0,3329.2,0.5503]
[1765377127714,3.2078,3330.7,3330.0,3.2078]
[1765377127905,0.6392,3330.6,3330.0,3.2078]
[1765377128106,3.2078,3330.2,3329.7,3.2078]
[1765377128312,3.2078,3330.2,3329.8,5.03]
[1765377128511,3.21104626,3330.2,3329.8,5.03]
[1765377129313,0.00324626,3330.2,3330.1,3.2078]
[1765377129517,3.2078,3330.7,3330.1,3.35796]
[1765377129709,3.2078,3330.7,3330.2,12.001]
[1765377130518,0.681,3332.0,3330.3,6.0]
[1765377130818,0.67649404,3332.0,3331.8,3.2078]
[1765377131016,0.67649404,3332.0,3331.9,4.055]
[1765377131318,0.6392,3332.7,3332.1,0.15007]
[1765377131510,0.64217074,3332.7,3332.6,3.2078]
[1765377131717,3.84997074,3332.7,3332.1,0.00348842]
[1765377132018,3.84997074,3332.7,3331.6,0.00450565]
[1765377132019,3.2078,3332.2,3331.6,0.00450565]
[1765377132821,31.94217074,3332.7,3331.6,0.00450565]
[1765377132822,3.2078,3331.7,3331.6,0.00711009]
[1765377133528,3.2078,3331.7,3330.7,3.138]
[1765377133529,9.2078,3331.7,3330.7,3.138]
[1765377133824,3.2078,3331.7,3330.8,3.2078]
[1765377134234,3.2078,3331.7,3330.9,0.15012]
[1765377134531,3.2078,3331.3,3331.0,0.00450565]
[1765377134924,0.681,3331.2,3330.3,3.2078]
[1765377135125,3.2078,3330.9,3330.1,2.466]
[1765377135526,3.2078,3330.9,3330.4,3.8617]
[1765377135937,0.00297074,3332.7,3332.5,0.15005]
[1765377136130,0.00297074,3332.7,3332.6,6.0017338]
[1765377136331,0.00297074,3332.7,3332.6,9.2095338]
[1765377136528,0.00297074,3332.7,3332.6,9.3595838]
[1765377136724,0.00297074,3332.7,3332.6,16.6125838]
[1765377136927,0.00297074,3332.7,3332.6,19.0365838]
[1765377137324,3.2078,3334.7,3333.0,0.15003]
[1765377137628,0.681,3336.0,3333.8,3.2078]
[1765377137828,0.681,3336.0,3335.1,3.2078]
[1765377138227,0.681,3336.0,3335.4,0.14992]
[1765377138427,0.68449258,3336.0,3335.7,3.2078]
[1765377138630,0.681,3337.2,3335.9,3.7276238]
[1765377138835,0.681,3337.2,3337.1,3.2078]
[1765377139227,12.106,3339.5,3337.1,3.2078]